bitfinex/quotes_BTCUSD_20250218
["timestamp","ask_amount","ask_price","bid_price","bid_amount"]
[1739860592125,0.00664301,95471.0,95470.0,0.0843]
[1739860592339,0.157107,95476.0,95470.0,0.0813]
[1739860592755,0.16375787,95475.0,95470.0,0.0796406]
[1739860592975,0.16375787,95475.0,95470.0,0.0776406]
[1739860593192,0.00664787,95475.0,95470.0,0.0816406]
[1739860593404,0.00664787,95475.0,95470.0,0.0856406]
[1739860593633,0.00664787,95475.0,95470.0,0.0776406]
[1739860593803,0.00700562,95474.0,95470.0,0.0806406]
[1739860593954,0.00700562,95474.0,95470.0,0.0836406]
[1739860594156,0.01985459,95478.0,95470.0,0.0836406]
[1739860594355,0.00700926,95477.0,95470.0,0.0806406]
[1739860594973,0.16411526,95477.0,95470.0,0.0836406]
[1739860595374,0.16411526,95477.0,95470.0,0.0806406]
[1739860595660,0.16411526,95477.0,95470.0,0.0836406]
[1739860595980,0.16411526,95477.0,95470.0,0.0806406]
[1739860596313,0.00700926,95477.0,95470.0,0.0796406]
[1739860596525,0.157107,95476.0,95470.0,0.0796406]
[1739860596734,0.00682262,95475.0,95470.0,0.0826406]
[1739860596933,0.01985459,95478.0,95470.0,0.0826406]
[1739860597333,0.00682505,95477.0,95470.0,0.0796406]
[1739860597787,0.157107,95476.0,95470.0,0.0826406]
[1739860598263,0.00682378,95475.0,95470.0,0.0826406]
[1739860598587,0.01985459,95478.0,95470.0,0.0826406]
[1739860598961,0.00682256,95474.0,95470.0,0.0806406]
[1739860599163,0.157107,95476.0,95470.0,0.0806406]
[1739860599364,0.01985459,95478.0,95470.0,0.0806406]
[1739860599365,0.157111,95474.0,95470.0,0.0806406]
[1739860599488,0.00682499,95475.0,95470.0,0.0776406]
[1739860599694,0.00682499,95475.0,95470.0,0.0806406]
[1739860600097,0.157106,95477.0,95470.0,0.0796406]
[1739860600299,0.00682378,95474.0,95470.0,0.0776406]
[1739860600514,0.00682256,95473.0,95470.0,0.0806406]
[1739860600713,0.01985459,95478.0,95470.0,0.0816406]
[1739860601016,0.01985459,95478.0,95470.0,0.0786406]
[1739860601017,0.00682742,95477.0,95470.0,0.0786406]
[1739860601261,0.00682742,95477.0,95470.0,0.0796406]
[1739860601667,0.16393242,95477.0,95470.0,0.0796406]
[1739860601946,0.16393242,95477.0,95470.0,0.0786406]
[1739860602287,0.00682742,95477.0,95470.0,0.0786406]
[1739860602504,0.157112,95474.0,95470.0,0.0796406]
[1739860602709,0.209476,95476.0,95470.0,0.0776406]
[1739860602914,0.00682256,95473.0,95470.0,0.0796406]
[1739860603109,0.209476,95476.0,95470.0,0.0816406]
[1739860603313,0.00682135,95472.0,95470.0,0.0776406]
[1739860603593,0.157105,95477.0,95470.0,0.0776406]
[1739860603795,0.00682013,95471.0,95470.0,0.0786406]
[1739860604015,0.01985459,95478.0,95470.0,0.0786406]
[1739860604207,0.01978189,95478.0,95470.0,0.0786406]
[1739860604416,0.0068189,95477.0,95470.0,0.0776406]
[1739860604620,0.12087995,95480.0,95470.0,0.08177326]
[1739860604824,0.00682012,95476.0,95470.0,0.08177326]
[1739860605024,0.0001703,95478.0,95470.0,0.08177326]
[1739860605233,0.00681647,95475.0,95470.0,0.08277326]
[1739860605445,0.00681647,95475.0,95474.0,0.15711]
[1739860605650,0.0001703,95478.0,95477.0,0.157105]
[1739860606820,0.0001703,95478.0,95477.0,0.158105]
[1739860607020,0.0001703,95478.0,95477.0,0.160105]
[1739860609122,0.0001703,95478.0,95477.0,0.003]
[1739860609503,0.1572743,95478.0,95477.0,0.003]
[1739860609716,0.0001703,95478.0,95477.0,0.003]
[1739860609960,0.0070043,95478.0,95477.0,0.003]
[1739860610136,0.0001703,95478.0,95477.0,0.003]
[1739860610436,0.00700309,95478.0,95477.0,0.001]
[1739860610672,0.00804912,95478.0,95477.0,0.001]
[1739860610905,0.00804912,95478.0,95477.0,0.002]
[1739860611098,0.157103,95479.0,95477.0,0.002]
[1739860611227,0.00614951,95478.0,95477.0,0.002]
[1739860611875,0.00614951,95478.0,95471.0,0.00111859]
[1739860612047,0.209472,95478.0,95477.0,0.002]
[1739860612243,0.209472,95478.0,95477.0,0.003]
[1739860612442,0.209472,95478.0,95477.0,0.001]
[1739860612646,0.209472,95478.0,95470.0,0.00047326]
[1739860612904,0.157107,95476.0,95470.0,0.00047326]
[1739860613191,0.157107,95476.0,95471.0,0.001]
[1739860613521,0.02015331,95480.0,95471.0,0.00111859]
[1739860613724,0.157106,95477.0,95471.0,0.00111859]
[1739860613933,0.157108,95476.0,95471.0,0.00111859]
[1739860614339,0.157108,95476.0,95470.0,0.00147326]
[1739860614750,0.01960805,95480.0,95470.0,0.00147326]
[1739860614955,0.157113,95473.0,95470.0,0.00147326]
[1739860615128,0.15711,95475.0,95471.0,0.001]
[1739860615363,0.12087995,95481.0,95471.0,0.00111859]
[1739860615566,0.157106,95477.0,95471.0,0.00111859]
[1739860615786,0.209467,95480.0,95471.0,0.00111859]
[1739860615787,0.157103,95479.0,95471.0,0.00111859]
[1739860615948,0.209467,95480.0,95471.0,0.00111859]
[1739860616146,0.157101,95480.0,95471.0,0.00111859]
[1739860616342,0.01966928,95481.0,95470.0,0.00247326]
[1739860616573,0.12087995,95490.0,95470.0,0.00247326]
[1739860616772,0.20945,95488.0,95470.0,0.00247326]
[1739860616925,0.20945,95488.0,95474.0,0.15711]
[1739860617139,0.0001703,95478.0,95475.0,0.00104737]
[1739860617333,0.0001703,95478.0,95477.0,0.157105]
[1739860618145,0.0001703,95478.0,95477.0,0.46908936]
[1739860618355,0.0001703,95478.0,95477.0,0.46804211]
[1739860618568,0.0001703,95478.0,95477.0,0.64104211]
[1739860618789,0.0001703,95478.0,95477.0,0.66190057]
[1739860618985,0.0001703,95478.0,95477.0,0.002]
[1739860619190,0.157105,95477.0,95475.0,0.00111859]
[1739860619399,0.16524465,95478.0,95477.0,0.002]
[1739860619612,0.0001703,95478.0,95477.0,0.007]
[1739860619818,0.0001703,95478.0,95477.0,0.005]
[1739860620229,0.0001703,95478.0,95477.0,0.007]
[1739860620854,0.0001703,95478.0,95472.0,0.00111859]
[1739860621070,0.157105,95477.0,95471.0,0.00145919]
[1739860621244,0.0001703,95478.0,95471.0,0.00145919]
[1739860621652,0.0001703,95478.0,95477.0,0.001]
[1739860622087,0.0001703,95478.0,95472.0,0.00111859]
[1739860622467,0.0001703,95478.0,95474.0,0.157109]
[1739860622670,0.0001703,95478.0,95477.0,0.002]
[1739860622932,0.0001703,95478.0,95477.0,0.159105]
[1739860623092,0.0001703,95478.0,95477.0,0.24115228]
[1739860623248,0.0001703,95478.0,95477.0,0.38990865]
[1739860624279,0.0001703,95478.0,95477.0,0.39190865]
[1739860624483,0.0001703,95478.0,95477.0,0.39290865]
[1739860624697,0.0001703,95478.0,95477.0,0.41302339]
[1739860625103,0.0001703,95478.0,95477.0,0.41802339]
[1739860625516,0.0001703,95478.0,95477.0,0.41102339]
[1739860625717,0.0011703,95478.0,95477.0,0.42202339]
[1739860626132,0.0001703,95478.0,95477.0,0.38990865]
[1739860626333,0.0001703,95478.0,95477.0,0.39590865]
[1739860626588,0.0011703,95478.0,95477.0,0.40290865]
[1739860627121,0.0011703,95478.0,95477.0,0.013]
[1739860627538,0.00913943,95478.0,95477.0,0.013]
[1739860628420,0.00913943,95478.0,95477.0,0.007]
[1739860628697,0.00913943,95478.0,95477.0,0.006]
[1739860628911,0.16624343,95478.0,95477.0,0.006]
[1739860629108,0.16724343,95478.0,95477.0,0.013]
[1739860629515,0.01013943,95478.0,95477.0,0.013]
[1739860637345,0.20780678,95478.0,95477.0,0.013]
[1739860637579,5.68253512,95478.0,95477.0,0.013]
[1739860637775,0.307114,95472.0,95471.0,0.00018194]
[1739860637995,0.307115,95471.0,95470.0,0.00111856]
[1739860638186,0.5121223,95471.0,95470.0,0.00111856]
[1739860638389,0.55781337,95471.0,95470.0,0.00111856]
[1739860638719,0.45530972,95471.0,95470.0,0.00111856]
[1739860639210,0.157138,95457.0,95445.0,0.00111856]
[1739860639441,0.157138,95457.0,95456.0,0.00026296]
[1739860639619,0.1650417,95457.0,95456.0,0.00026296]
[1739860640081,0.0079037,95457.0,95456.0,0.33980661]
[1739860640417,0.0001703,95478.0,95456.0,0.18266661]
[1739860640645,0.0001703,95478.0,95457.0,0.10250365]
[1739860640827,0.12087995,95470.0,95457.0,0.10250365]
[1739860641065,0.12087995,95470.0,95461.0,0.157131]
[1739860641211,0.00790679,95469.0,95457.0,0.10362221]
[1739860641435,0.00790679,95469.0,95462.0,0.156129]
[1739860641664,0.209482,95474.0,95457.0,0.10362221]
[1739860641881,0.157124,95466.0,95457.0,0.10362221]
[1739860642098,0.157125,95466.0,95457.0,0.10662221]
[1739860642303,0.00790376,95465.0,95457.0,0.00311856]
[1739860642553,0.157132,95461.0,95457.0,0.00111856]
[1739860642751,0.157132,95461.0,95456.0,0.00026296]
[1739860643096,0.209505,95463.0,95456.0,0.00026296]
[1739860643298,0.00790481,95460.0,95457.0,0.003]
[1739860643714,0.00790329,95459.0,95457.0,0.003]
[1739860643920,0.157129,95463.0,95457.0,0.00411856]
[1739860644120,0.157133,95461.0,95457.0,0.00411856]
[1739860644325,0.157126,95465.0,95457.0,0.00411856]
[1739860644530,0.00930725,95460.0,95457.0,0.00411856]
[1739860644734,0.12087995,95480.0,95460.0,0.157132]
[1739860644889,0.157122,95467.0,95458.0,0.15825456]
[1739860645090,0.209479,95475.0,95463.0,0.157127]
[1739860645321,0.01054204,95477.0,95458.0,0.00111856]
[1739860645477,0.01054204,95477.0,95459.0,0.10355106]
[1739860645678,0.157115,95472.0,95459.0,0.10355106]
[1739860645883,0.00932264,95476.0,95462.0,0.157129]
[1739860646120,0.12087995,95480.0,95463.0,0.10250365]
[1739860646327,0.157114,95472.0,95463.0,0.25963165]
[1739860646533,0.157112,95474.0,95464.0,0.157126]
[1739860646748,0.01054853,95471.0,95464.0,0.157126]
[1739860647072,0.01054853,95471.0,95463.0,0.10250365]
[1739860647277,0.01054853,95471.0,95463.0,0.10362221]
[1739860647487,0.01054853,95471.0,95465.0,0.157125]
[1739860648089,0.01054853,95471.0,95463.0,0.10362221]
[1739860648322,0.01054853,95471.0,95466.0,0.157123]
[1739860648725,0.01154853,95471.0,95466.0,0.157123]
[1739860649228,0.01054853,95471.0,95464.0,0.209503]
[1739860649423,0.01054853,95471.0,95466.0,0.00211856]
[1739860649579,0.12087995,95490.0,95466.0,0.00211856]
[1739860649580,0.157103,95479.0,95467.0,0.0789]
[1739860649777,0.12087995,95490.0,95467.0,0.0789]
[1739860649778,0.12087995,95490.0,95468.0,0.103551]
[1739860649987,0.01055132,95478.0,95471.0,0.209486]
[1739860650207,0.12087995,95500.0,95468.0,0.14960365]
[1739860650208,0.0164069,95492.0,95468.0,0.14960365]
[1739860650411,0.00790893,95477.0,95476.0,0.157107]
[1739860650612,0.0164069,95492.0,95468.0,0.14960365]
[1739860650788,0.157104,95478.0,95468.0,0.14960365]
[1739860650994,0.001,95471.0,95468.0,0.14960365]
[1739860651212,0.001,95471.0,95470.0,0.157116]
[1739860651567,0.209459,95484.0,95472.0,0.157113]
[1739860651718,0.157099,95481.0,95472.0,0.157112]
[1739860651928,7.778e-05,95560.0,95468.0,0.15160365]
[1739860651929,0.00791652,95483.0,95468.0,0.15160365]
[1739860652132,0.157087,95489.0,95480.0,0.1571]
[1739860652482,0.157087,95489.0,95477.0,0.209473]
[1739860652483,0.00790587,95482.0,95477.0,0.209473]
[1739860652690,0.00790587,95482.0,95468.0,0.14960365]
[1739860652691,0.00934136,95488.0,95470.0,0.012]
[1739860652934,0.01057057,95488.0,95471.0,0.1035509]
[1739860653145,0.20943,95497.0,95471.0,0.1035509]
[1739860653349,0.00933695,95487.0,95477.0,0.157105]
[1739860653552,0.16642695,95487.0,95477.0,0.157104]
[1739860653759,0.00933695,95487.0,95475.0,0.157107]
[1739860653959,0.157096,95483.0,95473.0,0.157111]
[1739860654163,0.157096,95483.0,95480.0,0.003]
[1739860654342,0.00933696,95482.0,95480.0,0.003]
[1739860654542,0.01056652,95482.0,95480.0,0.003]
[1739860654743,0.01056652,95482.0,95471.0,0.10250365]
[1739860654951,0.157088,95488.0,95479.0,0.157101]
[1739860655158,0.01057211,95481.0,95479.0,0.157101]
[1739860655311,0.157089,95487.0,95477.0,0.157104]
[1739860655519,0.157088,95488.0,95480.0,0.004]
[1739860655897,0.157088,95488.0,95476.0,0.209476]
[1739860656075,0.00417719,95487.0,95476.0,0.209476]
[1739860656378,0.209446,95490.0,95476.0,0.209476]
[1739860656576,0.157088,95488.0,95476.0,0.209476]
[1739860656820,0.20943,95497.0,95480.0,0.002]
[1739860657238,0.157092,95486.0,95480.0,0.002]
[1739860657440,0.001,95482.0,95480.0,0.007]
[1739860657795,0.157093,95485.0,95480.0,0.002]
[1739860658174,0.12087995,95490.0,95471.0,0.10250365]
[1739860658404,0.157087,95489.0,95476.0,0.003]
[1739860658603,0.02064683,95498.0,95477.0,0.209474]
[1739860658809,0.0012429,95488.0,95478.0,0.00104726]
[1739860659033,0.157081,95492.0,95482.0,0.157096]
[1739860659233,0.01964683,95498.0,95480.0,0.007]
[1739860659435,0.01964683,95498.0,95480.0,0.004]
[1739860659637,0.02064683,95498.0,95481.0,0.157098]
[1739860659846,0.02064683,95498.0,95480.0,0.1611]
[1739860660012,0.157084,95490.0,95481.0,0.157099]
[1739860660943,0.209432,95496.0,95484.0,0.157093]
[1739860661147,0.157074,95497.0,95480.0,0.209466]
[1739860661347,0.01964683,95498.0,95485.0,0.0753]
[1739860661526,0.157075,95496.0,95485.0,0.0753]
[1739860661727,0.157076,95495.0,95485.0,0.232391]
[1739860661926,0.01964683,95498.0,95485.0,0.0753]
[1739860662152,0.157077,95495.0,95485.0,0.232392]
[1739860662357,0.209436,95495.0,95481.0,0.10250365]
[1739860662513,0.15708,95493.0,95482.0,0.209463]
[1739860662715,0.157078,95494.0,95485.0,0.157092]
[1739860663114,0.01964683,95498.0,95487.0,0.157088]
[1739860663115,0.157074,95496.0,95487.0,0.157088]
[1739860663324,0.01964683,95498.0,95485.0,0.001]
[1739860663550,0.01964683,95498.0,95486.0,0.15709]
[1739860663551,0.157076,95495.0,95486.0,0.15709]
[1739860663777,0.01964683,95498.0,95483.0,0.10250365]
[1739860663987,0.157081,95492.0,95485.0,0.001]
[1739860664419,0.00106824,95491.0,95485.0,0.158092]
[1739860664630,0.157085,95490.0,95482.0,0.001]
[1739860664859,0.157082,95492.0,95483.0,0.157095]
[1739860665026,0.157079,95493.0,95484.0,0.157094]
[1739860665226,0.209434,95496.0,95479.0,0.0759]
[1739860665227,0.00106806,95491.0,95486.0,0.15709]
[1739860665430,0.00106824,95492.0,95486.0,0.15709]
[1739860665685,0.0003406,95493.0,95487.0,0.157089]
[1739860666044,0.00106859,95491.0,95485.0,0.003]
[1739860666334,0.00106842,95492.0,95485.0,0.003]
[1739860666665,0.0003406,95493.0,95487.0,0.157089]
[1739860666862,0.0010693,95491.0,95488.0,0.157086]
[1739860667073,0.0010686,95492.0,95490.0,0.157084]
[1739860667281,0.0003406,95493.0,95492.0,0.157081]
[1739860667488,0.0003406,95493.0,95492.0,0.26063168]
[1739860667705,0.0003406,95493.0,95492.0,0.33578465]
[1739860668348,0.0003406,95493.0,95492.0,0.17870365]
[1739860668552,0.0003406,95493.0,95492.0,0.10250365]
[1739860668760,0.0003406,95493.0,95490.0,0.002]
[1739860668978,0.0013406,95493.0,95492.0,0.007]
[1739860669183,0.0003406,95493.0,95490.0,0.002]
[1739860669597,0.0003406,95493.0,95492.0,0.005]
[1739860669774,0.0003406,95493.0,95491.0,0.157081]
[1739860670190,0.0003406,95493.0,95492.0,0.004]
[1739860670625,0.0013406,95493.0,95492.0,0.01]
[1739860671106,0.0003406,95493.0,95492.0,0.004]
[1739860671327,0.0013406,95493.0,95492.0,0.006]
[1739860671521,0.01033608,95493.0,95492.0,0.006]
[1739860671735,0.01133608,95493.0,95492.0,0.012]
[1739860673479,0.16841508,95493.0,95492.0,0.012]
[1739860673687,0.01133608,95493.0,95492.0,0.012]
[1739860674336,0.00933608,95493.0,95486.0,0.15709]
[1739860674544,0.01033608,95493.0,95492.0,0.007]
[1739860674750,0.01133608,95493.0,95492.0,0.013]
[1739860674979,0.01033608,95493.0,95492.0,0.007]
[1739860675174,0.00933608,95493.0,95473.0,0.1973]
[1739860675417,0.0013406,95493.0,95492.0,0.006]
[1739860675765,0.0013406,95493.0,95480.0,0.209466]
[1739860675939,0.0013406,95493.0,95492.0,0.006]
[1739860675940,0.0023406,95493.0,95492.0,0.006]
[1739860677059,0.0033406,95493.0,95492.0,0.013]
[1739860677410,0.0033406,95493.0,95492.0,0.006]
[1739860677613,0.0023406,95493.0,95492.0,0.006]
[1739860677930,0.0033406,95493.0,95492.0,0.013]
[1739860678937,0.01235651,95493.0,95492.0,0.013]
[1739860680001,0.01235651,95493.0,95488.0,0.15341933]
[1739860680205,0.01235651,95493.0,95490.0,0.157084]
[1739860680406,0.01235651,95493.0,95488.0,0.157086]
[1739860680586,0.01235651,95493.0,95489.0,0.0772]
[1739860680799,0.0023406,95493.0,95489.0,0.234285]
[1739860681006,0.0023406,95493.0,95489.0,0.0772]
[1739860681413,0.00901389,95492.0,95488.0,0.007]
[1739860681653,0.00901389,95492.0,95488.0,0.006]
[1739860681866,0.16609489,95492.0,95485.0,0.10267395]
[1739860682072,0.00901389,95492.0,95489.0,0.007]
[1739860682280,0.00901389,95492.0,95489.0,0.013]
[1739860682478,0.0023406,95493.0,95489.0,0.013]
[1739860682807,0.0013406,95493.0,95489.0,0.007]
[1739860683016,0.001,95492.0,95489.0,0.007]
[1739860683424,0.00901915,95491.0,95488.0,0.006]
[1739860684071,0.002,95492.0,95488.0,0.006]
[1739860684294,0.00900901,95490.0,95488.0,0.157087]
[1739860684499,0.002,95492.0,95485.0,0.10267395]
[1739860684907,0.001,95492.0,95485.0,0.25976595]
[1739860685080,0.0003406,95493.0,95486.0,0.15709]
[1739860685285,0.01002031,95491.0,95489.0,0.157086]
[1739860685519,0.001,95492.0,95489.0,0.157086]
[1739860685726,0.001,95492.0,95490.0,0.15813012]
[1739860685931,0.002,95492.0,95491.0,0.00104707]
[1739860686133,0.001,95492.0,95491.0,0.10355072]
[1739860686613,0.0003406,95493.0,95492.0,0.157081]
[1739860686791,0.0003406,95493.0,95492.0,0.25958465]
[1739860687704,0.0003406,95493.0,95492.0,0.25858465]
[1739860687910,0.0003406,95493.0,95492.0,0.25758465]
[1739860688384,0.0003406,95493.0,95492.0,0.26058465]
[1739860688571,0.0023406,95493.0,95492.0,0.26258465]
[1739860688933,0.0023406,95493.0,95492.0,0.30828465]
[1739860690421,0.157047,95513.0,95492.0,0.15320365]
[1739860690622,0.157048,95512.0,95503.0,0.157061]
[1739860690852,0.15705,95511.0,95501.0,0.157065]
[1739860691055,0.157051,95510.0,95501.0,0.157065]
[1739860691270,0.27793095,95511.0,95501.0,0.157066]
[1739860691680,0.157051,95510.0,95501.0,0.157066]
[1739860691880,0.209402,95510.0,95495.0,0.209435]
[1739860692094,0.157053,95509.0,95499.0,0.157069]
[1739860692387,0.157053,95509.0,95500.0,0.10250365]
[1739860692619,0.12087995,95511.0,95500.0,0.10250365]
[1739860692997,0.12087995,95511.0,95501.0,0.002]
[1739860693233,0.27792895,95511.0,95501.0,0.002]
[1739860693437,0.27792895,95511.0,95501.0,0.159066]
[1739860693617,0.209402,95510.0,95501.0,0.002]
[1739860693848,0.157053,95509.0,95501.0,0.002]
[1739860694055,0.157052,95510.0,95501.0,0.002]
[1739860694331,0.157055,95508.0,95500.0,0.10450365]
[1739860694526,0.157053,95510.0,95500.0,0.10250365]
[1739860694730,0.12087995,95511.0,95500.0,0.10450365]
[1739860694948,0.157051,95510.0,95501.0,0.002]
[1739860695178,0.12087995,95511.0,95501.0,0.004]
[1739860695390,0.157053,95509.0,95501.0,0.004]
[1739860695595,0.12087995,95511.0,95501.0,0.002]
[1739860695853,0.157064,95502.0,95501.0,0.002]
[1739860696056,0.209416,95504.0,95486.0,0.15709]
[1739860696267,0.12087995,95500.0,95487.0,0.157089]
[1739860696942,0.157072,95498.0,95487.0,0.157089]
[1739860697157,0.157075,95496.0,95488.0,0.0011703]
[1739860697358,0.157072,95498.0,95488.0,0.0011703]
[1739860697767,0.157072,95498.0,95488.0,0.0001703]
[1739860697989,0.12087995,95500.0,95488.0,0.0021703]
[1739860698226,0.157086,95489.0,95488.0,0.0041703]
[1739860698480,0.157086,95489.0,95488.0,0.0021703]
[1739860698910,0.157086,95489.0,95488.0,0.0061703]
[1739860699125,0.157086,95489.0,95488.0,0.0021703]
[1739860699340,0.158086,95489.0,95488.0,0.0041703]
[1739860699753,0.158086,95489.0,95488.0,0.0081703]
[1739860700175,0.158086,95489.0,95488.0,0.0041703]
[1739860700376,0.001,95489.0,95488.0,0.0041703]
[1739860700987,0.002,95489.0,95488.0,0.0091703]
[1739860701796,0.01103662,95489.0,95488.0,0.0091703]
[1739860703477,0.002,95489.0,95488.0,0.0091703]
[1739860703682,0.01103662,95489.0,95488.0,0.0091703]
[1739860703885,0.002,95489.0,95488.0,0.0091703]
[1739860704090,0.01103662,95489.0,95488.0,0.0091703]
[1739860704342,0.002,95489.0,95488.0,0.0091703]
[1739860704532,0.01103662,95489.0,95488.0,0.0091703]
[1739860704717,0.002,95489.0,95488.0,0.0091703]
[1739860704945,0.01103662,95489.0,95488.0,0.0091703]
[1739860705148,0.002,95489.0,95488.0,0.0091703]
[1739860705350,0.01103662,95489.0,95488.0,0.0091703]
[1739860705551,0.002,95489.0,95488.0,0.0091703]
[1739860705959,0.01103662,95489.0,95488.0,0.0091703]
[1739860706170,0.002,95489.0,95488.0,0.0091703]
[1739860706703,0.01103046,95489.0,95488.0,0.0091703]
[1739860706926,0.002,95489.0,95488.0,0.0091703]
[1739860707125,0.01103046,95489.0,95488.0,0.0091703]
[1739860707337,0.002,95489.0,95488.0,0.0091703]
[1739860709105,0.01103046,95489.0,95488.0,0.0091703]
[1739860712197,0.002,95489.0,95488.0,0.0091703]
[1739860712573,0.01103046,95489.0,95488.0,0.0091703]
[1739860712779,0.002,95489.0,95488.0,0.0091703]
[1739860713213,0.01103046,95489.0,95488.0,0.0091703]
[1739860714300,0.01003046,95489.0,95488.0,0.0051703]
[1739860714517,0.001,95489.0,95488.0,0.08241747]
[1739860714728,0.27472834,95509.0,95488.0,0.07841747]
[1739860714944,0.15707,95499.0,95488.0,0.2404563]
[1739860715156,0.15707,95499.0,95489.0,0.156085]
[1739860715368,0.15707,95499.0,95490.0,0.157084]
[1739860715604,0.15707,95499.0,95490.0,0.156084]
[1739860715824,0.15707,95499.0,95490.0,0.155084]
[1739860716267,0.0096218,95498.0,95488.0,0.0111703]
[1739860716444,0.0096218,95498.0,95490.0,0.157083]
[1739860717276,0.27794795,95500.0,95490.0,0.157083]
[1739860717491,0.00961978,95497.0,95491.0,0.157082]
[1739860717710,0.00962383,95499.0,95488.0,0.2096183]
[1739860717907,0.12087995,95500.0,95488.0,0.2096183]
[1739860717908,0.00961775,95496.0,95492.0,0.157081]
[1739860718063,0.12087995,95500.0,95492.0,0.157081]
[1739860718280,0.00961573,95495.0,95494.0,0.157077]
[1739860718519,0.00961573,95495.0,95488.0,0.0001703]
[1739860718520,0.33028195,95510.0,95496.0,0.157074]
[1739860718765,0.12087995,95510.0,95493.0,0.209438]
[1739860718943,0.15706,95505.0,95496.0,0.157074]
[1739860719176,0.209408,95507.0,95492.0,0.004]
[1739860719388,0.00963394,95508.0,95493.0,0.10355069]
[1739860719598,0.00962766,95504.0,95494.0,0.005]
[1739860719800,0.12087995,95510.0,95498.0,0.157069]
[1739860720418,0.00963576,95508.0,95498.0,0.157069]
[1739860720816,0.00963576,95508.0,95495.0,0.10250365]
[1739860720817,0.00963576,95508.0,95500.0,0.157067]
[1739860721376,0.00963576,95508.0,95499.0,0.157069]
[1739860722019,0.00963576,95508.0,95495.0,0.10250365]
[1739860722221,0.00963576,95508.0,95503.0,0.157062]
[1739860722449,0.00963576,95508.0,95496.0,0.209432]
[1739860722659,0.00963576,95508.0,95504.0,0.15706]
[1739860722868,0.00963576,95508.0,95499.0,0.004]
[1739860723067,0.00963576,95508.0,95502.0,0.157064]
[1739860723378,0.00963576,95508.0,95499.0,0.004]
[1739860723583,0.00963576,95508.0,95499.0,0.10650365]
[1739860723786,0.00963576,95508.0,95503.0,0.157062]
[1739860724590,0.12087995,95510.0,95499.0,0.10250365]
[1739860724795,0.00964793,95507.0,95499.0,0.10650365]
[1739860724998,0.12087995,95510.0,95502.0,0.157063]
[1739860725280,0.0096459,95506.0,95503.0,0.005]
[1739860725483,0.12087995,95510.0,95503.0,0.009]
[1739860725715,0.00964388,95505.0,95503.0,0.004]
[1739860725919,0.12087995,95510.0,95503.0,0.004]
[1739860725920,0.27793095,95510.0,95503.0,0.004]
[1739860726332,0.00965581,95509.0,95503.0,0.161062]
[1739860726735,0.00965581,95509.0,95503.0,0.157062]
[1739860727322,0.00965581,95509.0,95500.0,0.209423]
[1739860727465,0.00965581,95509.0,95502.0,0.157064]
[1739860727665,0.00965581,95509.0,95503.0,0.006]
[1739860728073,0.00965581,95509.0,95503.0,0.161063]
[1739860728359,0.00965581,95509.0,95500.0,0.209423]
[1739860728554,0.00965581,95509.0,95500.0,0.005]
[1739860728877,0.00965581,95509.0,95502.0,0.157064]
[1739860729377,0.00965581,95509.0,95503.0,0.005]
[1739860730935,0.00965581,95509.0,95502.0,0.004]
[1739860731142,0.00965581,95509.0,95502.0,0.157064]
[1739860731303,0.00965581,95509.0,95502.0,0.162064]
[1739860731505,0.00965581,95509.0,95503.0,0.004]
[1739860731706,0.00965581,95509.0,95499.0,0.10250365]
[1739860731707,0.00965581,95509.0,95500.0,0.157066]
[1739860731927,0.00965581,95509.0,95501.0,0.157065]
[1739860732132,0.00965581,95509.0,95502.0,0.005]
[1739860732536,0.157056,95507.0,95502.0,0.005]
[1739860732736,0.157055,95508.0,95502.0,0.005]
[1739860732933,0.00937337,95506.0,95502.0,0.005]
[1739860733138,0.209411,95506.0,95502.0,0.009]
[1739860733366,0.157063,95503.0,95502.0,0.005]
[1739860733507,0.157063,95503.0,95485.0,0.0001703]
[1739860733508,0.00937134,95505.0,95489.0,0.157085]
[1739860733711,0.157061,95504.0,95502.0,0.005]
[1739860734105,0.157066,95501.0,95500.0,0.005]
[1739860734308,0.08,95501.0,95485.0,0.0001703]
[1739860734512,0.157081,95492.0,95485.0,0.0001703]
[1739860734693,0.209435,95495.0,95489.0,0.006]
[1739860734948,0.00937139,95491.0,95489.0,0.006]
[1739860735153,0.157084,95491.0,95485.0,0.0001703]
[1739860735359,0.157085,95490.0,95485.0,0.0001703]
[1739860735569,0.16644423,95490.0,95488.0,0.0031703]
[1739860736502,0.16644423,95490.0,95488.0,0.0041703]
[1739860736704,0.16644423,95490.0,95488.0,0.0001703]
[1739860737118,0.16644423,95490.0,95488.0,0.0101703]
[1739860737501,0.16644423,95490.0,95488.0,0.0041703]
[1739860737872,0.16644423,95490.0,95488.0,0.0091703]
[1739860738073,0.00935923,95490.0,95488.0,0.0091703]
[1739860738455,0.157084,95490.0,95488.0,0.0091703]
[1739860738660,0.00935057,95489.0,95488.0,0.0091703]
[1739860739726,0.00935057,95489.0,95488.0,0.0001703]
[1739860740132,0.00935057,95489.0,95488.0,0.0051703]
[1739860740593,0.00935057,95489.0,95488.0,0.0091703]
[1739860741006,0.2,95487.0,95485.0,0.0001703]
[1739860741188,0.0787,95471.0,95437.0,0.0936429]
[1739860741362,0.157137,95458.0,95456.0,0.00128886]
[1739860741586,0.0832,95457.0,95456.0,0.00128886]
[1739860741744,0.09102024,95457.0,95456.0,0.00128886]
[1739860742183,0.11189477,95457.0,95456.0,0.00128886]
[1739860742557,0.11189477,95457.0,95456.0,0.0002167]
[1739860743284,0.11189477,95457.0,95456.0,0.0052167]
[1739860743485,0.11189477,95457.0,95456.0,0.0002167]
[1739860743920,0.11289477,95457.0,95456.0,0.0122167]
[1739860744350,0.11189477,95457.0,95456.0,0.0002167]
[1739860744809,0.11189477,95457.0,95456.0,0.0032167]
[1739860745339,0.02869477,95457.0,95456.0,0.0032167]
[1739860747340,0.02869477,95457.0,95456.0,0.0052167]
[1739860751396,0.13021645,95457.0,95456.0,0.0052167]
[1739860751606,0.2327201,95457.0,95456.0,0.0052167]
[1739860751814,0.2317201,95457.0,95456.0,0.0052167]
[1739860752436,1.3453201,95457.0,95456.0,0.0022167]
[1739860752555,1.0851201,95457.0,95456.0,0.0002167]
[1739860752917,0.6313201,95457.0,95456.0,0.0002167]
[1739860753153,0.29580492,95457.0,95456.0,0.0002167]